Cogmind - Beta 16 @@@ ROGUE MODE // 2026.01.22 @ 21:13:35 Player: Rainy Days Result: Core destroyed Performance ------------- Evolutions (1) 500 Regions Visited (2) 400 Robots Destroyed (34) 170 Value Destroyed (737) 737 Prototype IDs (1) 20 Alien Tech Used (0) 0 Bonus (0) 0 TOTAL SCORE: 1827 Bonus ------- None Cogmind --------- Core Integrity 0/400 Matter 277/300 Energy 86/100 System Corruption 1% Temperature Critical (519) Movement Rolling (120) Ox2 Location -9/Materials Parts ------- > --- POWER (1) -------- (None) > --- PROPULSION (2) --- Armored Wheel > --- UTILITY (3) ------ Large Storage Unit ECM Suite > --- WEAPON (3) ------- Small Laser Heavy Particle Gun Heavy Particle Gun > --- INVENTORY (15) --- Light Ion Engine Aluminum Leg Armored Wheel Armored Wheel Improved Heat Sink High-capacity Storage Unit ECM Suite Core Shielding Grenade Launcher Grenade Launcher Grenade Launcher Mining Claw Mining Claw Peak State ------------ > --- POWER ------------ Improved Ion Engine > --- PROPULSION ------- Compact Wheel Compact Wheel > --- UTILITY ---------- Large Storage Unit Signal Interpreter ECM Suite > --- WEAPON ----------- Heavy Particle Gun Heavy Particle Gun Heavy Assault Rifle > --- INVENTORY -------- Light Ion Engine Light Treads Armored Wheel Armored Wheel Armored Wheel Improved Heat Sink High-capacity Storage Unit ECM Suite Core Shielding Small Laser Grenade Launcher Grenade Launcher Grenade Launcher Mining Claw Mining Claw [Rating: 19] Favorites ----------- Power Light Ion Engine Engine Light Ion Engine Propulsion Aluminum Leg Leg Aluminum Leg Wheel Compact Wheel Utility ECM Suite Device ECM Suite Storage Large Storage Unit Processor Signal Interpreter Protection Light Armor Plating Weapon Assault Rifle Energy Gun Heavy Particle Gun Ballistic Gun Assault Rifle Launcher Grenade Launcher Build | -11 -10 -9 ------- Run | Yrd Mat Mat Slots Evolved 2 | . . 2 Power . | . . . Propulsion . | . . . Utility 1 | . . 1 Weapon 1 | . . 1 Parts Attached 23 | 6 7 10 Power 5 | 1 2 2 Engine 5 | 1 2 2 Core . | . . . Reactor . | . . . Propulsion 5 | 2 2 1 Treads . | . . . Leg 2 | 2 . . Wheel 3 | . 2 1 Hover . | . . . Flight . | . . . Utility 5 | 1 2 2 Device 1 | . 1 . Storage 2 | 1 1 . Processor 1 | . . 1 Hackware . | . . . Protection 1 | . . 1 Artifact . | . . . Weapon 8 | 2 1 5 Energy Gun 3 | . . 3 Energy Cannon . | . . . Ballistic Gun 3 | 2 . 1 Ballistic Cannon . | . . . Launcher 2 | . 1 1 Special Weapon . | . . . Impact Weapon . | . . . Slashing Weapon . | . . . Piercing Weapon . | . . . Special Melee Weapon . | . . . Unidentified Prototypes 1 | . . 1 Parts Lost 12 | . 5 7 Power 4 | . 2 2 Propulsion 4 | . 2 2 Utility 1 | . . 1 Weapon 3 | . 1 2 Highest Loss Streak 5 | . 4 5 To Critical Strikes . | . . . Average Backups 9 | . 8 12 Power . | . . . Propulsion 2 | . 2 2 Utility 3 | . 3 5 Weapon 2 | . 2 4 Tool/Special . | . . . Unused Backups 14 | . . 14 Power . | . . . Propulsion 5 | . . 5 Utility 6 | . . 6 Weapon 3 | . . 3 Tool/Special . | . . . Average Slot Usage (%) 91 | . 94 87 Engine 12 | . 13 9 Leg 15 | . 23 . Wheel 9 | . 2 21 Device 12 | . 12 11 Storage 12 | . 14 11 Energy Gun 7 | . . 21 Ballistic Gun 19 | . 25 9 Peak Build Rating 19 | 6 8 19 Average Rating 9 | 4 6 15 On Entrance 4 | . 6 7 Avg Prop Armor Cover (%) . | . . . Naked Turns . | . . . Heaviest Build 41 | 12 30 41 Greatest Support 32 | 20 32 32 Greatest Overweight (x) 7 | . 7 2 Average Overweight (x) . | . . . Largest Inventory Capacity 15 | 8 15 15 Average Capacity 13 | 7 13 15 Most Carried 15 | 4 11 15 Average Carried 9 | . 8 12 Final Capacity 15 | 8 15 15 Final Carried 13 | 4 10 13 Class Distribution -------------------- 71% | Mutant 18% | Gunner 6% | Scavenger-Gunner 4% | Scavenger-Tank Dominant Class ---------------- Mutant | -10/Materials Gunner | -9/Materials Resources | -11 -10 -9 ----------- Run | Yrd Mat Mat Matter Collected 961 | 272 467 222 Remotely . | . . . Salvage Created 1353 | 56 628 669 Parts 69 | 4 29 36 Haulers Intercepted 3 | . 1 2 Recyclers Shooed 8 | . 5 3 Parts Field Recycled . | . . . Retrieved Matter . | . . . Parts Self-Destructed . | . . . Prevented . | . . . Parts Restored . | . . . Kills | -11 -10 -9 ------- Run | Yrd Mat Mat Combat Hostiles Destroyed 23 | . 10 13 Melee 1 | . . 1 Guns 20 | . 8 12 AOE 2 | . 2 . Classes Destroyed 7 | 1 5 1 Worker 1 | . 1 . Hauler 3 | . 1 2 Recycler 5 | 1 3 1 Watcher 2 | . 2 . Swarmer 9 | . 5 4 Grunt 11 | . 5 6 Sentry 3 | . . 3 Best Kill Streak 6 | 1 5 6 Combat Bots Only 4 | . 2 4 Max Kills in Single Turn 2 | 1 2 1 Gunslinging . | . . . Exploded 2 | . 2 . Melee 1 | . . 1 Uniques/NPCs Destroyed . | . . . Combat | -11 -10 -9 -------- Run | Yrd Mat Mat Hostile Shots Fired 163 | . 86 77 Missed 42 | . 25 17 Hits 121 | . 61 60 Projectile 121 | . 61 60 Critical Strikes 4 | . 2 2 Damage Taken 1660 | . 688 972 Core 598 | . 159 439 Absorbed by Shields . | . . . Core Remaining (%) 68 | 100 36 . Volleys Fired 118 | 2 73 43 Largest 3 | 2 2 3 Hottest 150 | 40 50 150 Shots Fired 243 | 4 137 102 Gun 240 | 4 136 100 Cannon . | . . . Launcher 3 | . 1 2 Special . | . . . Kinetic 165 | 4 136 25 Thermal 75 | . . 75 Explosive 3 | . 1 2 Electromagnetic . | . . . Robot Hit Streak 13 | 2 7 13 Robot Miss Streak 5 | 1 5 5 Penetration Max . | . . . Secondary Targets 2 | . . 2 Max Gunslinging Chain 1 | . . 1 Shots Hit Robots 124 | 2 69 53 Core Hits 50 | 2 27 21 Critical Kills 1 | . 1 . Critical Parts Destroyed . | . . . Critical Strikes 4 | . 1 3 Burn 3 | . . 3 Destroy 1 | . 1 . Melee Attacks . | . . . Impact . | . . . Slashing . | . . . Piercing . | . . . Sneak Attacks . | . . . Combat Hostiles . | . . . Follow-up Attacks . | . . . Damage Inflicted 2048 | 35 1005 1008 Guns 1922 | 35 917 970 Cannons . | . . . Explosions 88 | . 88 . Melee . | . . . Ramming 38 | . . 38 Kinetic 1106 | 35 917 154 Thermal 816 | . . 816 Explosive 88 | . 88 . Electromagnetic . | . . . Impact . | . . . Slashing . | . . . Piercing . | . . . Highest Corruption 4 | . 4 1 Average Corruption 3 | . 3 1 Corruption Purged . | . . . Corruption Blocked . | . . . Effects 9 | . 9 . Message Errors 3 | . 3 . Heat Flow Errors 1 | . 1 . Energy Discharges 1 | . 1 . Data Loss (minor) 3 | . 3 . Data Loss (major) 1 | . 1 . Overload Shots . | . . . Overflow Damage . | . . . Projectiles . | . . . Explosions . | . . . Melee . | . . . Knockbacks . | . . . Impact . | . . . Kinetic . | . . . Secondary . | . . . Self-Inflicted Damage 17 | . . 17 Shots . | . . . Rammed 8 | . . 8 Targets Rammed 8 | . . 8 Kicked . | . . . Crushed . | . . . Highest Temperature 703 | . 174 703 Average Temperature 194 | . 29 225 Received Heat Transfer 597 | . 327 270 Effects 18 | . . 18 Shutdowns 3 | . . 3 Energy Bleed 3 | . . 3 Interference 5 | . . 5 Matter Decay 1 | . . 1 Short Circuit 1 | . . 1 Damage (minor) 2 | . . 2 Damage (core) 3 | . . 3 Siege Activations . | . . . Martial Activations . | . . . Shielding Activations . | . . . Robots Disrupted . | . . . Combat Hostiles . | . . . Robots Corrupted . | . . . Combat Hostiles . | . . . Parts Fried . | . . . Impact Corruptions . | . . . Robots Melted . | . . . Combat Hostiles . | . . . Parts Melted 4 | . . 4 Heat Transferred 1889 | . . 1889 Parts Sabotaged . | . . . Parts Stolen . | . . . Parts Stripped . | . . . Power Chain Reactions . | . . . Alert | -11 -10 -9 ------- Run | Yrd Mat Mat Maximum Alert Level 1 | . . 1 Low Security (%) 91 | 100 100 74 Level 1 8 | . . 25 Level 2 . | . . . Level 3 . | . . . Level 4 . | . . . Level 5 . | . . . High Security . | . . . Max Security . | . . . Peak Influence 260 | 5 97 260 Initial . | . . . Average 59 | . 30 123 Influence Increases 793 | 5 310 478 Destroy 0b10 Robot/C 460 | . 200 260 Destroy 0b10 Robot/NC 55 | 5 35 15 Destroy Leader 130 | . 56 74 Successful Hack 12 | . . 12 Disable Machine 45 | . . 45 Destroy Structure 16 | . 4 12 Lose Combat Pursuer 75 | . 15 60 Influence Decreases 562 | 5 310 247 Time Decay 452 | 5 270 177 Lost Part 107 | . 37 70 Purge Threat 3 | . 3 . Squads Dispatched 4 | . 2 2 Investigation 3 | . 1 2 Extermination . | . . . Reinforcement 1 | . 1 . Assault . | . . . Garrison . | . . . Intercept . | . . . Searches Triggered . | . . . Construction Impeded . | . . . Haulers Reinforced . | . . . Active Scanning Responses . | . . . Cargo Convoy Interrupts . | . . . Stealth | -11 -10 -9 --------- Run | Yrd Mat Mat Distress Signals 2 | . 1 1 Communications Jammed . | . . . Distress Signals . | . . . Times Spotted 45 | . 22 23 Peak Tracking Total 6 | . 4 6 Tactical Retreats 5 | . 2 3 ECM-based Alert Blocks 2 | . 1 1 Traps | -11 -10 -9 ------- Run | Yrd Mat Mat Traps Triggered 5 | . 4 1 Indirectly . | . . . Trap Hack Attempts . | . . . Triggered . | . . . Disarmed . | . . . Reprogrammed 3 | . 3 . Reused . | . . . Traps Extracted . | . . . Installed . | . . . Triggered . | . . . Machines | -11 -10 -9 ---------- Run | Yrd Mat Mat Machines Disabled 3 | . . 3 Max in Single Turn 1 | . . 1 Machines Repaired . | . . . Machines Dismantled . | . . . Machines Sabotaged . | . . . Overloaded Fab Kills . | . . . Hacking | -11 -10 -9 --------- Run | Yrd Mat Mat Machines Accessed 5 | . 3 2 Terminals 3 | . 2 1 Fabricators . | . . . Repair Stations . | . . . Recycling Units 1 | . 1 . Scanalyzers 1 | . . 1 Garrison Access . | . . . Total Hacks 17 | . 9 8 Successful 8 | . 6 2 Failed 9 | . 3 6 Catastrophic 3 | . . 3 Database Lockouts . | . . . Manual . | . . . Terminals 11 | . 6 5 Fabricators . | . . . Repair Stations . | . . . Recycling Units 3 | . 3 . Scanalyzers 3 | . . 3 Garrison Access . | . . . Terminal Hacks 5 | . 4 1 Record 2 | . 2 . Alert Level 1 | . . 1 Unreport Threat 1 | . 1 . Reprogram Traps 1 | . 1 . Fabricator Hacks . | . . . Repair Station Hacks . | . . . Recycling Unit Hacks 2 | . 2 . Process 1 | . 1 . Report Inventory 1 | . 1 . Scanalyzer 1 | . . 1 Insert Component 1 | . . 1 Garrison Access Hacks . | . . . Unauthorized Hacks . | . . . Terminals . | . . . Fabricators . | . . . Repair Stations . | . . . Recycling Units . | . . . Scanalyzers . | . . . Garrison Access . | . . . Data Cores Recovered . | . . . Used . | . . . Hacking Detections 5 | . 3 2 Full Trace Events 2 | . . 2 Feedback Events . | . . . Feedback Blocked . | . . . Robot Schematics Acquired . | . . . Robots Built . | . . . Authchips . | . . . Time . | . . . Total Robot Build Rating . | . . . Part Schematics Acquired . | . . . Parts Built . | . . . Authchips . | . . . Time . | . . . Total Part Build Rating . | . . . Part Studies Acquired . | . . . Parts Repaired . | . . . Time . | . . . Parts Recycled . | . . . Recycled Matter 82 | . 82 . Retrieved Matter . | . . . Retrieved Components . | . . . Parts Scanalyzed 1 | . . 1 Part Schematics Acquired . | . . . Parts Damaged 1 | . . 1 Bothacking | -11 -10 -9 ------------ Run | Yrd Mat Mat Used RIF Installer . | . . . Robots Hacked . | . . . Non-combat . | . . . Combat . | . . . Robot Hacks Applied . | . . . Relay Couplers Released . | . . . Fabnet Peak Effective % . | . . . Robots Rewired . | . . . Allies Hacked . | . . . Hacks Repelled . | . . . Allies | -11 -10 -9 -------- Run | Yrd Mat Mat Total Allies . | . . . Largest Group . | . . . Highest-Rated Group . | . . . Highest-Rated Ally . | . . . Total Orders . | . . . Ally Attacks . | . . . Total Damage . | . . . Kills . | . . . Allies Corrupted . | . . . Allies Melted . | . . . Intel | -11 -10 -9 ------- Run | Yrd Mat Mat Active Infowar (turns) 851 | . 654 197 ECM 851 | . 654 197 Robot Analysis Total . | . . . Derelict Logs Recovered . | . . . Drone Launches . | . . . Drone Recoveries . | . . . Exploration | -11 -10 -9 ------------- Run | Yrd Mat Mat Turns Passed 1177 | 75 712 390 Spaces Moved 445 | 54 231 160 Core 16 | 13 3 . Treads . | . . . Legs 202 | 41 161 . Wheels 227 | . 67 160 Hover . | . . . Flight . | . . . Fastest Speed 50 | 50 100 100 Average Speed 134 | 103 156 113 Slowest Speed 400 | 120 400 120 Overloaded Moves . | . . . Propulsion Burnouts . | . . . Robots Hopped . | . . . Potential Cave-ins . | . . . Cave-ins Triggered . | . . . Exploration Rate (%) 20 | 5 35 21 Regions Visited 2 Branch Regions . Pre-discovered Areas . | . . . Known Exits Taken . | . . . Unknown Exits Taken 2 | 1 1 . Scrap Searched . | . . . Spaces Dug . | . . . Terrain Destroyed 13 | . 3 10 Melee . | . . . Projectile . | . . . AOE 13 | . 3 10 Terrain Rammed . | . . . Walls Destroyed . | . . . Machines Disabled . | . . . Actions | -11 -10 -9 --------- Run | Yrd Mat Mat Total 796 | 67 442 287 Wait 167 | . 121 46 Move 443 | 53 230 160 Hop . | . . . Pick Up 27 | 6 9 12 Fast Attach 9 | 4 1 4 Attach 12 | 2 5 5 Detach 2 | . 1 1 Swap 3 | . 2 1 Drop 7 | . . 7 Fire 118 | 2 73 43 Melee . | . . . Ram 8 | . . 8 Kick . | . . . Crush . | . . . Escape Stasis . | . . . Rewire . | . . . Trap . | . . . Miscellaneous . | . . . Route ------- -11/Scrapyard -10/Materials (discovered 2 exits: *Mat x2) -9/Materials History --------- Turn | Location | Event 8 | -11/Scrapyard | Discovered new exit (range 14) 76 | -11/Scrapyard | Entered Materials 241 | -10/Materials | Discovered new exit (range 16) 303 | -10/Materials | Build established: Mutant 682 | -10/Materials | Core integrity fell below 50% 721 | -10/Materials | Lost 4 parts (1p2n1w) 737 | -10/Materials | Discovered new exit (range 16) 788 | -10/Materials | Entered another Materials area 788 | -9/Materials | Evolved 2 slots: Utility x1, Weapon x1 1143 | -9/Materials | Core integrity fell below 50% 1171 | -9/Materials | Core integrity fell below 20% 1179 | -9/Materials | Core destroyed Last Messages --------------- 01157_ K-01 Serf collects debris. 01160_ Processing Tank disabled. 01160_ K-01 Serf collects debris. 01165_ Overheating: Core damaged (-76). 01166_ Imp. Ion Engine destroyed. 01168_ K-01 Serf collects debris. 01169_ G-34 Mercenary suffers critical hit (Burn). 01170_ Overheating: System interference. 01170_ Hvy. Particle Gun temporarily disabled. 01170_ G-34 Mercenary heat short circuits Sml. Laser. 01171_ Overheating: Core damaged (-64). 01172_ K-01 Serf collects debris. 01172_ U-05 Engineer builds a Door. 01173_ Overheating: Energy bleed (-19). 01173_ Com. Wheel destroyed. 01176_ Hvy. Particle Gun broken. 01176_ Overheating: Short circuit. 01179_ Overheating: Core damaged (-68). Map ----- +----------------------------------------------------+ | ???????????????????????#/ # [[[ #???????????? | | ???????????????????????#! + [[ #???????????? | | ???????????????????????# # #???????????? | | ????????????????######## # #???????????? | | ????????????????# # ###########???????????? | | ????????????????# # # #??????????????? | | ????????????????# !""" # " """#??????????????? | | ????????????????# """ # " """#??????????????? | | ????????????????# """ + %+ """#??????????????? | | ????????????????# # ^|# #??????????????? | | ????????????????######## # = #??????????????? | | ???????????############# #?######??????????????? | | ???????????# ! # #?????????????????????? | | ???????????# "" # #?????????????????????? | | ???????????# "T # #????#????????????????? | | ???????????# " = """ + #??? #????????????????? | | ???????????# =%! """ # #??? #????????????????? | | ???????????# """ # ####+######???????????? | | ???????????# #k # #???????????? | | ???????????# ######+#### # #???????????? | | ???????????### # # ?????????????? | | ?????????????# """ "" # *#g """" ??????????????? | | ?????????????# """ T" + u/% """" ????????????? | | ?????????????# """ "" # # """"" #???????????? | | ?????????????# # u# #???????????? | | ?????????????# ! # @ # = #???????????? | | ?????????????# = # u###########???????????? | | ?????????????# # k#?????????????????????? | | ?????????????########### g#?????????????????????? | | ???????????????????????# m#?????????????????????? | | ???????????????????????# #?????????????????????? | | ???????????????????????# #?????????????????????? | | ???????????????????????#u #?????????????????????? | | ??????????????????????? ?????????????????????? | | ??????????????????????? ?????????????????????? | | ??????????????????????? ?????????????????????? | | ???????????????????????####+?????????????????????? | | ?????????????????????????????????????????????????? | | ?????????????????????????????????????????????????? | | ?????????????????????????????????????????????????? | | ?????????????????????????????????????????????????? | | ?????????????????????????????????????????????????? | | ?????????????????????????????????????????????????? | | ?????????????????????????????????????????????????? | | ?????????????????????????????????????????????????? | | ?????????????????????????????????????????????????? | | ?????????????????????????????????????????????????? | | ?????????????????????????????????????????????????? | | ?????????????????????????????????????????????????? | | ?????????????????????????????????????????????????? | +----------------------------------------------------+ Best States ------------- Heat Dissipation 28 Energy Generation 12 Energy Capacity 265 Matter Stores 300 Matter Capacity 300 Sight Range 16 Terrain Scan Density 10 ECM Strength 1 Armor Coverage 150 Evasion (%) 55 Item Schematics ----------------- None Robot Schematics ------------------ None Fabricated ------------ Nothing Repaired ---------- Nothing Studied --------- None Alien Tech Used ----------------- None Achievements -------------- DATA ERROR: Steam Global Achievement% For Emergencies Only Organ Harvest There's More Where That Came From Well Done Challenges ------------ None Game ------ Seed DataLightPick Manual? 0 Play Time 00:22:17 Cumulative 185.4 hours Start 2026.01.22 @ 20:41:04 End 2026.01.22 @ 21:13:35 Sessions 1 Manual Loads 0 Difficulty Rogue Special Mode None Game No. 62 Rogue 62 Adventurer 0 Explorer 0 Win Type - Total 4 Types 2/0/1/0/0/1/0/0/0/0 Lore% 37 Gallery% 58 Achievement% 37 Wizard Run 0 Options --------- Layout 2 ASCII 0 Keyboard 0 Movement Mouse Keybinds 0 Fullscreen 1 Font 24/Smallcaps Map View 50x44 Zoom Use 0% Tactical HUD 1 Map Filters NONE Filters NONE Steam 1 RUN: 233ec880-4b99-4161-a0a8-e33a01b2d3b1